lending/lending_fUSD_20240110
["ID","MTS","AMOUNT","RATE_DAILY","PERIOD"]
[310996173,1704844840907,437.29,0.00021855,2]
[310996177,1704844851359,272.21,0.00021825,2]
[310996180,1704844986625,207.9,0.00022029,2]
[310996181,1704844987354,207.9,0.00022089,2]
[310996182,1704844987777,207.9,0.0002215,2]
[310996183,1704844988016,207.9,0.0002221,2]
[310996184,1704844988251,207.9,0.0002227,2]
[310996185,1704844988490,207.9,0.00022331,2]
[310996186,1704844988719,207.9,0.00022391,2]
[310996187,1704844988911,207.9,0.00022452,2]
[310996188,1704845006239,2000.0,0.00021789,2]
[310996189,1704845020742,11576.16,0.00021789,2]
[310996195,1704845065803,304.38,0.00021782,2]
[310996196,1704845124008,163.87,0.00021769,2]
[310996197,1704845141839,364.35,0.00019864,2]
[310996198,1704845141914,364.35,0.00022128,2]
[310996199,1704845153109,200.0,0.00021797,2]
[310996200,1704845204419,156.46284011,0.00022405,2]
[310996201,1704845216091,322.5877837,0.00021797,2]
[310996202,1704845217574,158.37838692,0.00022501,2]
[310996203,1704845219534,2615.50147157,0.00022501,2]
[310996204,1704845220758,542.22035535,0.00022501,2]
[310996205,1704845223083,155.0,0.00021797,2]
[310996206,1704845228343,6426.87138327,0.00022501,2]
[310996207,1704845232427,2040.64253572,0.00022501,2]
[310996208,1704845234952,541.74664849,0.00022501,2]
[310996209,1704845237610,158.65097084,0.00022501,2]
[310996210,1704845239363,-1052.85122804,0.00022502,2]
[310996211,1704845240096,-1129.96276131,0.00022502,2]
[310996212,1704845243085,-1500.73569381,0.00022502,2]
[310996213,1704845246318,476.82323145,0.00022501,2]
[310996214,1704845258369,33697.60628684,0.00022501,2]
[310996215,1704845258982,3618.63889774,0.00022501,2]
[310996216,1704845265084,155.41046091,0.00022501,2]
[310996217,1704845265157,5469.5421162,0.00022501,2]
[310996218,1704845270644,158.73,0.00022,2]
[310996219,1704845273204,500.0,0.00021797,2]
[310996220,1704845288297,259.15197385,0.00021797,2]
[310996222,1704845300702,636.27,0.00021768,2]
[310996226,1704845306530,479.51,0.00021768,2]
[310996227,1704845306584,200.0,0.00021768,2]
[310996234,1704845352129,-526.7122659,0.00022501,2]
[310996235,1704845352150,-3618.63889774,0.00022503,2]
[310996236,1704845352175,-1886.88676551,0.00022504,2]
[310996237,1704845352196,-1000.0,0.00022506,2]
[310996238,1704845352218,-203.0,0.00022509,2]
[310996239,1704845352238,-207.0,0.00022509,2]
[310996240,1704845352260,-207.9,0.00022512,2]
[310996241,1704845352282,-150.0,0.00022553,2]
[310996242,1704845352301,-4743.32110295,0.00022554,2]
[310996243,1704845366220,-3373.46429136,0.00022553,2]
[310996244,1704845366242,-3377.00140503,0.00022554,2]
[310996245,1704845366266,-12097.49130361,0.00022554,2]
[310996246,1704845372743,500.0,0.00021812,2]
[310996256,1704845421992,158.29,0.00021804,10]
[310996272,1704845432586,-298.18115197,0.00022554,2]
[310996273,1704845432595,-705.12220296,0.00022554,2]
[310996274,1704845432606,-433.59794111,0.00022554,2]
[310996275,1704845432698,-455.81801914,0.00022554,2]
[310996276,1704845432707,-474.96567467,0.00022555,2]
[310996277,1704845432756,-5632.32426592,0.00022555,2]
[310996278,1704845432765,-56253.83895437,0.00022556,2]
[310996279,1704845432777,-294.350642,0.00022556,2]
[310996280,1704845432788,-3357.13040363,0.00022556,2]
[310996281,1704845432797,-341.12075405,0.00022563,2]
[310996282,1704845432806,-1175.49036383,0.00022567,2]
[310996283,1704845432815,-363.3248794,0.00022567,2]
[310996285,1704845432824,-3872.76733798,0.00022567,2]
[310996287,1704845432833,-207.9,0.00022572,2]
[310996289,1704845432843,-1764.26581942,0.00022578,2]
[310996291,1704845432852,-1532.9,0.00022578,2]
[310996293,1704845432861,-399.1011347,0.00022579,2]
[310996294,1704845432870,-158.73,0.00022591,2]
[310996296,1704845432879,-150.99,0.00022592,2]
[310996298,1704845432888,-1753.7002,0.00022592,2]
[310996300,1704845432898,-229.1236873,0.00022595,2]
[310996302,1704845432908,-207.9,0.00022633,2]
[310996303,1704845432918,-195.81,0.00022649,2]
[310996304,1704845432927,-10450.8200322,0.00022692,2]
[310996305,1704845432936,-1091.2,0.00022692,2]
[310996306,1704845432944,-207.9,0.00022693,2]
[310996307,1704845432954,-1276.16414967,0.00022694,2]
[310996308,1704845432963,-155.39587564,0.00022694,2]
[310996309,1704845432972,-1264.12879631,0.00022694,2]
[310996310,1704845432981,-193.83586058,0.00022695,2]
[310996311,1704845432990,-241.61161094,0.00022695,2]
[310996312,1704845432999,-155.40316722,0.00022695,2]
[310996313,1704845433009,-1156.28676057,0.00022695,2]
[310996314,1704845433018,-10419.12658787,0.00022695,2]
[310996315,1704845433028,-157.54664099,0.00022695,2]
[310996316,1704845433037,-155.0,0.00022695,2]
[310996317,1704845433046,-165.97462066,0.00022695,2]
[310996318,1704845433056,-214.21133708,0.00022695,2]
[310996319,1704845433066,-437.95871489,0.00022695,2]
[310996320,1704845433076,-376.79366639,0.00022695,2]
[310996321,1704845433086,-156.19133947,0.00022695,2]
[310996322,1704845433096,-526.86634552,0.00022695,2]
[310996323,1704845433106,-164.2384182,0.00022695,2]
[310996324,1704845433116,-1000.0,0.000227,2]
[310996325,1704845433126,-479.51,0.00022746,2]
[310996326,1704845433136,-229.12368729,0.00022748,2]
[310996327,1704845433146,-207.9,0.00022754,2]
[310996328,1704845433156,-195.81,0.00022768,2]
[310996329,1704845433166,-207.9,0.00022814,2]
[310996330,1704845433177,-170.58,0.00022833,2]
[310996331,1704845433186,-207.9,0.00022875,2]
[310996332,1704845433195,-227.70232845,0.00022882,2]
[310996333,1704845433204,-195.81,0.00022887,2]
[310996334,1704845433214,-31443.0423,0.00022899,2]
[310996335,1704845433223,-500.0,0.00022899,2]
[310996336,1704845433232,-1976.0178,0.00022899,2]
[310996337,1704845433241,-699.4852,0.00022899,2]
[310996338,1704845433250,-229.12368729,0.000229,2]
[310996339,1704845433259,-162.59077977,0.000229,2]
[310996340,1704845433268,-177.46,0.00022923,2]
[310996341,1704845433278,-207.9,0.00022935,2]
[310996342,1704845433286,-207.9,0.00022995,2]
[310996343,1704845433296,-1186.21425465,0.00022997,2]
[310996344,1704845433305,-251.44969674,0.00022997,2]
[310996345,1704845433314,-2895.90399733,0.00022997,2]
[310996346,1704845433324,-282.95863908,0.00022998,2]
[310996347,1704845433335,-2323.10367527,0.00022999,2]
[310996348,1704845433345,-125148.08073475,0.00022999,2]
[310996349,1704845433355,-932.39338065,0.00023,2]
[310996350,1704845433364,-163491.28709103,0.00023,2]
[310996351,1704845433374,-23494.02943896,0.00023,2]
[310996352,1704845433384,-195.81,0.00023006,2]
[310996353,1704845433393,-207.9,0.00023056,2]
[310996354,1704845433404,-156.46283992,0.00023057,2]
[310996355,1704845433414,-207.9,0.00023116,2]
[310996356,1704845433423,-195.81,0.00023126,2]
[310996357,1704845433433,-151.72,0.00023131,2]
[310996358,1704845433442,-207.9,0.00023177,2]
[310996359,1704845433452,-158.73,0.00023182,2]
[310996360,1704845433462,-195.81,0.00023245,2]
[310996361,1704845433471,-195.81,0.00023364,2]
[310996362,1704845433481,-195.81,0.00023483,2]
[310996363,1704845433491,-195.81,0.00023602,2]
[310996364,1704845433501,-156.46283992,0.0002371,2]
[310996365,1704845433511,-195.81,0.00023722,2]
[310996366,1704845433524,-479.51,0.00023725,2]
[310996367,1704845433533,-158.73,0.00023774,2]
[310996368,1704845433543,-195.81,0.00023841,2]
[310996369,1704845433553,-163.87,0.00023946,2]
[310996370,1704845433566,-203.0,0.00023951,4]
[310996371,1704845433577,-195.81,0.0002396,2]
[310996372,1704845433587,-430.68871395,0.00024,2]
[310996373,1704845433598,-195.81,0.00024079,2]
[310996374,1704845433610,-195.81,0.00024198,2]
[310996375,1704845433620,-170.18,0.00024297,2]
[310996376,1704845433630,-195.81,0.00024318,2]
[310996377,1704845433640,-156.46283992,0.00024362,2]
[310996378,1704845433649,-158.73,0.00024365,2]
[310996379,1704845433659,-364.35,0.00024392,2]
[310996380,1704845433668,-195.81,0.00024437,2]
[310996381,1704845433678,-151.72,0.000245,2]
[310996382,1704845433688,-304.38,0.00024505,2]
[310996383,1704845433697,-195.81,0.00024556,2]
[310996384,1704845433707,-171.85,0.0002456,2]
[310996385,1704845433716,-250.0,0.00024658,2]
[310996386,1704845433726,-195.81,0.00024675,2]
[310996387,1704845433735,-479.51,0.00024703,2]
[310996388,1704845433745,-195.81,0.00024794,2]
[310996389,1704845433756,-210.0,0.00024808,2]
[310996390,1704845433766,-683.79,0.00024833,2]
[310996391,1704845433776,-195.81,0.00024914,2]
[310996392,1704845433785,-158.73,0.00024956,2]
[310996393,1704845433795,-382.48024583,0.00025,2]
[310996394,1704845433805,-1246.32796092,0.00025,2]
[310996395,1704845433814,-1581.25327792,0.00025,2]
[310996396,1704845433824,-167.05182833,0.00025,2]
[310996397,1704845433834,-302.57664433,0.00025,2]
[310996398,1704845433844,-1016.69878254,0.00025,2]
[310996399,1704845433854,-155.22626387,0.00025,2]
[310996400,1704845433864,-682.52192944,0.00025,2]
[310996401,1704845433874,-350.0,0.00025,3]
[310996402,1704845433884,-156.46283992,0.00025014,2]
[310996403,1704845433894,-203.0,0.00025393,6]
[310996404,1704845433905,-158.73,0.00025547,2]
[310996405,1704845433915,-156.46283992,0.00025667,2]
[310996406,1704845433926,-479.51,0.00025682,2]
[310996407,1704845433936,-150.0,0.00026079,2]
[310996408,1704845433947,-158.73,0.00026138,2]
[310996409,1704845433958,-7033.0,0.00026318,2]
[310996410,1704845433969,-156.46283992,0.00026319,2]
[310996411,1704845433981,-4712.98,0.00026575,2]
[310996412,1704845433992,-364.35,0.00026656,2]
[310996413,1704845434004,-479.51,0.0002666,2]
[310996414,1704845434014,-203.0,0.00026835,8]
[310996415,1704845434024,-156.46283992,0.00026972,2]
[310996416,1704845434034,-366.32246676,0.00027,3]
[310996417,1704845434053,-33.67753324,0.00027,3]
[310996418,1704845434063,-304.38,0.00027228,2]
[310996419,1704845434073,-293.0,0.00027289,2]
[310996420,1704845434083,-500.0,0.00027397,2]
[310996421,1704845434095,-586.76443726,0.00027397,2]
[310996422,1704845434129,-3434.87556274,0.00027397,2]
[310996423,1704845434139,-250.0,0.00027397,2]
[310996424,1704845434149,-250.0,0.000274,2]
[310996425,1704845434159,-185.25759016,0.000275,2]
[310996426,1704845434168,-671.96251305,0.000275,4]
[310996427,1704845434178,-4021.64,0.00027556,2]
[310996428,1704845434188,-683.79,0.00027592,2]
[310996429,1704845434197,-156.46283992,0.00027624,2]
[310996430,1704845434207,-479.51,0.00027639,2]
[310996431,1704845434216,-4021.64,0.00027714,2]
[310996432,1704845434225,-4021.64,0.00027872,2]
[310996433,1704845434235,-9680.58,0.00027918,2]
[310996434,1704845434245,-685.31917993,0.00028,2]
[310996435,1704845434256,-202.635464,0.00028,2]
[310996436,1704845434265,-4021.64,0.0002803,2]
[310996437,1704845434275,-4021.64,0.00028189,2]
[310996438,1704845434284,-156.46283992,0.00028276,2]
[310996439,1704845434295,-203.0,0.00028277,10]
[310996440,1704845434305,-4021.64,0.00028347,2]
[310996441,1704845434314,-4021.64,0.00028505,2]
[310996442,1704845434326,-479.51,0.00028617,2]
[310996443,1704845434336,-4021.64,0.00028664,2]
[310996444,1704845434345,-4021.64,0.00028822,2]
[310996445,1704845434354,-364.35,0.0002892,2]
[310996446,1704845434365,-156.46283992,0.00028929,2]
[310996447,1704845434374,-155.0,0.00029,2]
[310996448,1704845434384,-1040.00347398,0.00029,2]
[310996449,1704845434394,-450.0,0.00029,3]
[310996450,1704845434403,-522.8,0.00029009,2]
[310996451,1704845434412,-5627.98,0.00029009,2]
[310996452,1704845434422,-156.46283992,0.00029581,2]
[310996453,1704845434431,-479.51,0.00029595,2]
[310996454,1704845434441,-203.0,0.00029719,13]
[310996455,1704845434450,-210.93,0.000299,2]
[310996456,1704845434459,-304.38,0.00029951,2]
[310996457,1704845434469,-438.28,0.00029973,2]
[310996458,1704845434478,-155.76148216,0.0002998,3]
[310996459,1704845434488,-690.39236906,0.0003,2]
[310996460,1704845434497,-155.0,0.0003,2]
[310996461,1704845434509,-1500.41017267,0.0003,2]
[310996463,1704845438261,-8119.71627884,0.0003,2]
[310996464,1704845438271,-677.34550316,0.0003,4]
[310996465,1704845438280,-17258.92657975,0.0003,4]
[310996466,1704845438292,-1726.59211001,0.0003,4]
[310996467,1704845438303,-200.0,0.0003,7]
[310996468,1704845438312,-236.0,0.00030018,2]
[310996469,1704845438326,-450.0,0.0003002,3]
[310996470,1704845438336,-377.36965767,0.0003002,3]
[310996471,1704845438348,-72.63034233,0.0003002,3]
[310996472,1704845438358,-720.71200177,0.000301,2]
[310996473,1704845438367,-692.65508001,0.000301,2]
[310996474,1704845438377,-285.68297929,0.000301,4]
[310996475,1704845438387,-153.84,0.00030137,2]
[310996476,1704845438397,-156.46283992,0.00030233,2]
[310996477,1704845438407,-152.0,0.0003024,3]
[310996478,1704845438416,-683.79,0.00030351,2]
[310996479,1704845438426,-159.58540463,0.0003039,2]
[310996480,1704845438435,-3783.0,0.000304,2]
[310996481,1704845438445,-38842.0,0.000304,2]
[310996482,1704845438454,-636.27,0.00030475,2]
[310996483,1704845438464,-479.51,0.00030574,2]
[310996484,1704845438473,-156.46283992,0.00030886,2]
[310996485,1704845438483,-150.71,0.00030898,2]
[310996486,1704845438493,-150.71,0.00030898,2]
[310996487,1704845438502,-150.71,0.00030898,2]
[310996488,1704845438513,-150.71,0.00030898,2]
[310996489,1704845438522,-150.71,0.00030898,2]
[310996490,1704845438532,-150.71,0.00030898,2]
[310996491,1704845438541,-98703.8441,0.00030899,2]
[310996492,1704845438550,-298.34424204,0.000309,3]
[310996493,1704845438560,-1519.47461797,0.00031,7]
[310996494,1704845438569,-500.0,0.00031,3]
[310996495,1704845438578,-153.84,0.0003105,2]
[310996496,1704845438588,-203.0,0.00031161,15]
[310996497,1704845438597,-364.35,0.00031184,2]
[310996498,1704845438606,-298.34424202,0.000314,4]
[310996499,1704845438615,-340.62,0.00031507,2]
[310996500,1704845438625,-156.46283992,0.00031538,2]
[310996501,1704845438634,-479.51,0.00031552,2]
[310996502,1704845438643,-151.0,0.00031625,120]
[310996503,1704845438653,-165.05,0.00031644,2]
[310996504,1704845438662,-150.74,0.00031799,2]
[310996505,1704845438673,-209.0,0.000318,2]
[310996506,1704845438682,-177160.41016,0.000318,2]
[310996507,1704845438691,-157.31,0.000318,2]
[310996508,1704845438700,-157.31,0.000318,2]
[310996509,1704845438709,-157.31,0.000318,2]
[310996510,1704845438718,-341.75664799,0.00031841,2]
[310996511,1704845438728,-181.0,0.00031899,2]
[310996512,1704845438736,-239636.04634674,0.000319,2]
[310996513,1704845438788,-5363.95365326,0.000319,2]
[310996514,1704845438798,-385.19095033,0.000319,4]
[310996515,1704845438807,-254.99520262,0.000319,2]
[310996516,1704845438816,-243.75851736,0.000319,2]
[310996517,1704845438825,-298.34424202,0.000319,4]
[310996518,1704845438834,-153.84,0.00031963,2]
[310996519,1704845438843,-400.84456416,0.00031997,2]
[310996520,1704845438852,-19259.54751656,0.00031997,4]
[310996521,1704845438861,-175497.77179049,0.00032,2]
[310996522,1704845438873,-512946.56046765,0.00032,2]
[310996523,1704845438882,-5903.966889,0.00032,2]
[310996524,1704845438892,-261.10253064,0.00032,2]
[310996525,1704845438902,-487.424818,0.00032,4]
[310996526,1704845438911,-297.1247831,0.00032,4]
[310996527,1704845438920,-1802.90872975,0.00032,4]
[310996528,1704845438931,-271.2747877,0.00032,2]
[310996529,1704845438940,-271.2747877,0.00032,2]
[310996530,1704845438949,-271.2747877,0.00032,2]
[310996531,1704845438958,-152.0,0.00032146,4]
[310996532,1704845438968,-156.46283992,0.00032191,2]
[310996533,1704845438977,-151.0,0.0003227,30]
[310996534,1704845438987,-450.0,0.000325,3]
[310996535,1704845438996,-479.51,0.00032531,2]
[310996536,1704845439007,-155.0,0.000326,4]
[310996537,1704845439016,-203.0,0.00032603,17]
[310996538,1704845439025,-304.38,0.00032674,2]
[310996539,1704845439034,-156.46283992,0.00032843,2]
[310996540,1704845439043,-153.84,0.00032877,2]
[310996541,1704845439053,-790.81,0.00032877,15]
[310996542,1704845439062,-151.0,0.00032929,7]
[310996543,1704845439071,-22436.64515551,0.00033,2]
[310996544,1704845439080,-1454.26218209,0.00033,5]
[310996545,1704845439090,-550.0,0.00033,3]
[310996546,1704845439099,-683.79,0.0003311,2]
[310996547,1704845439109,-530.29226633,0.00033207,2]
[310996548,1704845439118,-364.35,0.00033448,2]
[310996549,1704845439127,-156.46283992,0.00033495,2]
[310996550,1704845439136,-391.59793213,0.000335,2]
[310996551,1704845439146,-1086.3,0.000335,2]
[310996552,1704845439155,-1086.3,0.000335,2]
[310996553,1704845439164,-1086.3,0.000335,2]
[310996554,1704845439174,-1086.3,0.000335,2]
[310996555,1704845439183,-1086.3,0.000335,2]
[310996556,1704845439192,-1086.3,0.000335,2]
[310996557,1704845439202,-1086.3,0.000335,2]
[310996558,1704845439211,-1086.3,0.000335,2]
[310996559,1704845439220,-1086.3,0.000335,2]
[310996560,1704845439230,-1086.3,0.000335,2]
[310996561,1704845439239,-1086.3,0.000335,2]
[310996562,1704845439248,-1086.3,0.000335,2]
[310996563,1704845439257,-1086.3,0.000335,2]
[310996564,1704845439269,-1086.3,0.000335,2]
[310996565,1704845439278,-1086.3,0.000335,2]
[310996566,1704845439287,-1086.3,0.000335,2]
[310996567,1704845439297,-1086.3,0.000335,2]
[310996568,1704845439307,-1086.3,0.000335,2]
[310996569,1704845439316,-1086.3,0.000335,2]
[310996570,1704845439325,-1086.3,0.000335,2]
[310996571,1704845439334,-479.51,0.00033509,2]
[310996572,1704845439344,-151.0,0.00033601,4]
[310996573,1704845439353,-153.84,0.0003379,2]
[310996574,1704845439362,-255.36609276,0.00033951,4]
[310996575,1704845439372,-1000.0,0.00034,4]
[310996576,1704845439381,-801.48193066,0.00034,4]
[310996577,1704845439392,-203.0,0.00034045,19]
[310996578,1704845439401,-152.0,0.00034053,5]
[310996579,1704845439410,-2397.95436339,0.0003412,2]
[310996580,1704845439419,-156.46283992,0.00034148,2]
[310996581,1704845439428,-170.58,0.0003425,2]
[310996582,1704845439437,-151.0,0.00034287,2]
[310996583,1704845439447,-479.51,0.00034488,2]
[310996584,1704845439456,-338.5884,0.0003452,2]
[310996585,1704845439466,-3189.66,0.00034521,2]
[310996586,1704845439475,-459.0,0.00034564,5]
[310996587,1704845439485,-180.0,0.00034658,2]
[310996588,1704845439494,-153.84,0.00034703,2]
[310996589,1704845439503,-340.62,0.00034703,2]
[310996590,1704845439513,-507.8826,0.00034794,2]
[310996591,1704845439522,-156.46283992,0.000348,2]
[310996592,1704845439531,-8876.92688182,0.000349,2]
[310996593,1704845439541,-100638.24348946,0.000349,2]
[310996594,1704845439551,-1277.77379491,0.000349,2]
[310996595,1704845439560,-1541.28906713,0.000349,2]
[310996596,1704845439569,-1541.28906699,0.000349,2]
[310996597,1704845439578,-1541.28906699,0.000349,2]
[310996598,1704845439588,-1541.28906699,0.000349,2]
[310996599,1704845439597,-1541.28906699,0.000349,2]
[310996600,1704845439607,-1541.28906699,0.000349,2]
[310996601,1704845439618,-1541.28906699,0.000349,2]
[310996602,1704845439627,-677.176801,0.00034931,2]
[310996603,1704845439637,-635.31257937,0.0003498,3]
[310996604,1704845439648,-515.61409035,0.0003498,3]
[310996605,1704845439657,-157.5,0.0003498,3]
[310996606,1704845439667,-460.03063231,0.00034999,2]
[310996607,1704845439676,-11726.19983714,0.00035,2]
[310996608,1704845439686,-28597.31588071,0.00035,7]
[310996609,1704845439695,-1345.27630067,0.00035,14]
[310996610,1704845439705,-2000.0,0.00035,7]
[310996611,1704845439714,-2000.0,0.00035,7]
[310996612,1704845439725,-426.43579538,0.00035,7]
[310996613,1704845439736,-617.90544107,0.00035,4]
[310996614,1704845439745,-180774.66063044,0.00035,4]
[310996615,1704845439755,-155.0,0.00035,2]
[310996616,1704845439765,-446.78845482,0.00035,4]
[310996617,1704845439774,-155.33912068,0.00035,3]
[310996618,1704845439783,-2500.0,0.00035,2]
[310996619,1704845439793,-600.0,0.00035,3]
[310996621,1704845439803,-157.31,0.00035,2]
[310996622,1704845439812,-157.31,0.00035,2]
[310996623,1704845439821,-157.31,0.00035,2]
[310996624,1704845439830,-157.31,0.00035,2]
[310996625,1704845439839,-157.31,0.00035,2]
[310996626,1704845439849,-157.31,0.00035,2]
[310996627,1704845439858,-450.0,0.0003502,3]
[310996628,1704845439868,-846.471001,0.00035068,2]
[310996629,1704845439878,-4608.98,0.0003522,10]
[310996630,1704845439886,-3840.81,0.0003522,10]
[310996631,1704845439896,-3200.68,0.0003522,10]
[310996632,1704845439906,-4259.0,0.0003523,30]
[310996633,1704845439915,-4259.0,0.0003523,60]
[310996634,1704845439925,-150.0,0.00035335,120]
[310996635,1704845439935,-1185.059401,0.00035342,2]
[310996636,1704845439944,-479.51,0.00035466,2]
[310996637,1704845439953,-203.0,0.00035487,22]
[310996638,1704845439963,-476.4011,0.00035548,4]
[310996639,1704845439972,-150.1,0.00035556,2]
[310996640,1704845439982,-150.0,0.00035616,2]
[310996641,1704845439991,-210.15754575,0.00035616,7]
[310996642,1704845440000,-967.152292,0.00035616,2]
[310996643,1704845440012,-153.84,0.00035616,2]
[310996644,1704845440020,-311.91670185,0.00035616,2]
[310996645,1704845440029,-152.08,0.00035616,2]
[310996646,1704845440038,-888.4011,0.00035648,4]
[310996647,1704845440047,-364.35,0.00035711,2]
[310996648,1704845440055,-888.4011,0.00035748,4]
[310996649,1704845440064,-3189.66,0.00035798,2]
[310996650,1704845440073,-888.4011,0.00035848,4]
[310996651,1704845440082,-967.152292,0.00035865,2]
[310996652,1704845440091,-888.4011,0.00035948,4]
[310996653,1704845440100,-1541.28906699,0.00035953,2]
[310996654,1704845440109,-152.0,0.00035959,6]
[310996655,1704845440118,-92188.34675349,0.00036,4]
[310996656,1704845440127,-621.95549523,0.00036,2]
[310996657,1704845440136,-161.72403565,0.00036089,2]
[310996658,1704845440145,-161.72403562,0.00036089,2]
[310996659,1704845440154,-161.72403562,0.00036089,2]
[310996660,1704845440163,-161.72403562,0.00036089,2]
[310996661,1704845440172,-161.72403562,0.00036089,2]
[310996662,1704845440181,-161.72403562,0.00036089,2]
[310996663,1704845440190,-161.72403562,0.00036089,2]
[310996664,1704845440200,-1944.977054,0.000361,23]
[310996665,1704845440209,-967.152292,0.00036114,2]
[310996666,1704845440218,-1158.79532186,0.00036145,8]
[310996667,1704845440227,-888.4011,0.00036148,4]
[310996668,1704845440236,-151.38524979,0.0003623,30]
[310996669,1704845440245,-888.4011,0.00036248,4]
[310996670,1704845440254,-1086.3,0.000363,3]
[310996671,1704845440266,-1086.3,0.000363,3]
[310996672,1704845440276,-1086.3,0.000363,3]
[310996674,1704845440285,-1086.3,0.000363,3]
[310996675,1704845440294,-1086.3,0.000363,3]
[310996676,1704845440306,-1086.3,0.000363,3]
[310996677,1704845440315,-1086.3,0.000363,3]
[310996678,1704845440324,-1086.3,0.000363,3]
[310996679,1704845440333,-1086.3,0.000363,3]
[310996680,1704845440344,-1086.3,0.000363,3]
[310996682,1704845440353,-1086.3,0.000363,3]
[310996684,1704845440362,-1086.3,0.000363,3]
[310996686,1704845440372,-1086.3,0.000363,3]
[310996687,1704845440381,-1086.3,0.000363,3]
[310996688,1704845440390,-1086.3,0.000363,3]
[310996689,1704845440401,-1086.3,0.000363,3]
[310996691,1704845440410,-1086.3,0.000363,3]
[310996693,1704845440419,-1086.3,0.000363,3]
[310996695,1704845440428,-1086.3,0.000363,3]
[310996697,1704845440437,-1086.3,0.000363,3]
[310996699,1704845440446,-888.4011,0.00036348,4]
[310996701,1704845440456,-967.152292,0.00036363,2]
[310996703,1704845440465,-200.42228208,0.00036397,2]
[310996705,1704845440475,-10959.74636834,0.000364,2]
[310996707,1704845440483,-10959.74636819,0.000364,2]
[310996709,1704845440492,-10959.74636819,0.000364,2]
[310996711,1704845440502,-10959.74636819,0.000364,2]
[310996713,1704845440513,-10959.74636819,0.000364,2]
[310996715,1704845440522,-10959.74636819,0.000364,2]
[310996717,1704845440532,-10959.74636819,0.000364,2]
[310996719,1704845440541,-10959.74636819,0.000364,2]
[310996721,1704845440550,-10959.74636819,0.000364,2]
[310996723,1704845440560,-10959.74636819,0.000364,2]
[310996725,1704845440569,-10959.74636819,0.000364,2]
[310996727,1704845440578,-10959.74636819,0.000364,2]
[310996729,1704845440587,-10959.74636819,0.000364,2]
[310996731,1704845440596,-10959.74636819,0.000364,2]
[310996733,1704845440605,-10959.74636819,0.000364,2]
[310996735,1704845440614,-10959.74636819,0.000364,2]
[310996737,1704845440623,-10959.74636819,0.000364,2]
[310996739,1704845440632,-10959.74636819,0.000364,2]
[310996741,1704845440642,-166.82,0.00036438,2]
[310996743,1704845440651,-166.82,0.00036438,46]
[310996745,1704845440660,-166.82,0.00036438,90]
[310996747,1704845440669,-243.75851736,0.00036448,2]
[310996749,1704845440679,-888.4011,0.00036448,4]
[310996751,1704845440688,-153.84,0.0003653,2]
[310996753,1704845440697,-160.03,0.00036536,2]
[310996755,1704845440706,-888.4011,0.00036548,4]
[310996757,1704845440715,-503.84657486,0.000366,30]
[310996759,1704845440725,-1500.0,0.000366,23]
[310996761,1704845440734,-967.152292,0.00036612,2]
[310996763,1704845440743,-790.81,0.00036613,15]
[310996764,1704845440751,-888.4011,0.00036648,4]
[310996765,1704845440763,-888.4011,0.00036748,4]
[310996766,1704845440772,-2000.0,0.000368,2]
[310996767,1704845440782,-888.4011,0.00036848,6]
[310996768,1704845440791,-967.152292,0.00036861,2]